[Event "Live Chess"]
[Site "Chess.com"]
[Date "2023.05.20"]
[Round "-"]
[White "JoeyCage"]
[Black "mikkyb4"]
[Result "1-0"]
[WhiteElo "2319"]
[BlackElo "1002"]
[TimeControl "300"]
[EndTime "15:30:52 PDT"]
[Termination "JoeyCage won by resignation"]

1. e4 {[%clk 0:04:56.8]} 1... g6 {[%clk 0:04:58.8]} 2. d4 {[%clk 0:04:55.4]}
2... Bg7 {[%clk 0:04:58]} 3. Nc3 {[%clk 0:04:54.1]} 3... d6 {[%clk 0:04:57.1]}
4. Bg5 {[%clk 0:04:52.7]} 4... a6 {[%clk 0:04:55.4]} 5. a4 {[%clk 0:04:51.2]}
5... Nc6 {[%clk 0:04:51.2]} 6. Nge2 {[%clk 0:04:43.4]} 6... Bg4 {[%clk
0:04:48.1]} 7. f3 {[%clk 0:04:40.9]} 7... Bc8 {[%clk 0:04:42.9]} 8. Qd2 {[%clk
0:04:37.4]} 8... h6 {[%clk 0:04:34.7]} 9. Be3 {[%clk 0:04:35.5]} 9... e6 {[%clk
0:04:23.8]} 10. h4 {[%clk 0:04:32.2]} 10... b6 {[%clk 0:04:21.6]} 11. f4 {[%clk
0:04:23.4]} 11... Bb7 {[%clk 0:04:11.8]} 12. h5 {[%clk 0:04:20.5]} 12... Nge7
{[%clk 0:04:02.4]} 13. Ng3 {[%clk 0:04:16.3]} 13... Nb4 {[%clk 0:03:47.2]} 14.
Be2 {[%clk 0:04:08.6]} 14... d5 {[%clk 0:03:37.6]} 15. hxg6 {[%clk 0:03:42.1]}
15... fxg6 {[%clk 0:03:33.8]} 16. f5 {[%clk 0:03:41]} 16... dxe4 {[%clk
0:03:16.2]} 17. fxg6 {[%clk 0:03:34.7]} 17... Nxg6 {[%clk 0:03:00.8]} 18. Bh5
{[%clk 0:03:29]} 18... Qd6 {[%clk 0:02:27.2]} 19. Bxg6+ {[%clk 0:03:26.2]} 19...
Kd7 {[%clk 0:02:20.7]} 20. Ngxe4 {[%clk 0:03:20.5]} 20... Qc6 {[%clk 0:01:33.5]}
21. O-O {[%clk 0:03:14.6]} 21... Rad8 {[%clk 0:01:26.3]} 22. Rf7+ {[%clk
0:03:09.1]} 22... Kc8 {[%clk 0:01:22.4]} 23. Rxg7 {[%clk 0:03:07.8]} 23... Rhg8
{[%clk 0:01:15.3]} 24. Rxg8 {[%clk 0:03:06.2]} 24... Rxg8 {[%clk 0:01:14.5]} 25.
Bh5 {[%clk 0:03:05.3]} 25... Nd5 {[%clk 0:01:05.5]} 26. Nxd5 {[%clk 0:03:01.6]}
26... Qxd5 {[%clk 0:01:04.6]} 27. Bf3 {[%clk 0:02:59.7]} 27... Qf5 {[%clk
0:00:51.5]} 28. Rf1 {[%clk 0:02:41.6]} 28... Bxe4 {[%clk 0:00:42.6]} 29. Bxe4
{[%clk 0:02:39.8]} 29... Qxe4 {[%clk 0:00:41.6]} 30. Rf4 {[%clk 0:02:37.9]}
30... Qd5 {[%clk 0:00:30.6]} 31. b3 {[%clk 0:02:33.3]} 31... Kb7 {[%clk
0:00:19.3]} 32. Qf2 {[%clk 0:02:31.6]} 32... b5 {[%clk 0:00:16.1]} 33. axb5
{[%clk 0:02:29.3]} 33... axb5 {[%clk 0:00:15.1]} 34. Qf3 {[%clk 0:02:27.3]}
34... Qxf3 {[%clk 0:00:13]} 35. Rxf3 {[%clk 0:02:25.6]} 1-0

[Event "Live Chess"]
[Site "Chess.com"]
[Date "2023.05.20"]
[Round "-"]
[White "lightningorderyt"]
[Black "JanMur7"]
[Result "0-1"]
[WhiteElo "518"]
[BlackElo "1949"]
[TimeControl "300"]
[EndTime "15:30:55 PDT"]
[Termination "JanMur7 won by checkmate"]

1. d4 {[%clk 0:04:59.9]} 1... Nf6 {[%clk 0:04:56.8]} 2. c4 {[%clk 0:04:58.4]}
2... e6 {[%clk 0:04:56]} 3. Nc3 {[%clk 0:04:57]} 3... d5 {[%clk 0:04:55.9]} 4.
Bg5 {[%clk 0:04:52.7]} 4... Be7 {[%clk 0:04:54.8]} 5. Bxf6 {[%clk 0:04:47.9]}
5... Bxf6 {[%clk 0:04:54.7]} 6. e4 {[%clk 0:04:47.8]} 6... dxe4 {[%clk 0:04:52]}
7. Nxe4 {[%clk 0:04:46.5]} 7... Qxd4 {[%clk 0:04:51.1]} 8. Nxf6+ {[%clk
0:04:41.5]} 8... Qxf6 {[%clk 0:04:51]} 9. Nf3 {[%clk 0:04:36.4]} 9... O-O {[%clk
0:04:49.6]} 10. Bd3 {[%clk 0:04:34.7]} 10... Nc6 {[%clk 0:04:46.4]} 11. O-O
{[%clk 0:04:33]} 11... Ne5 {[%clk 0:04:44]} 12. Nxe5 {[%clk 0:04:29.9]} 12...
Qxe5 {[%clk 0:04:43.9]} 13. b3 {[%clk 0:04:04.6]} 13... b6 {[%clk 0:04:41]} 14.
Qf3 {[%clk 0:03:47.2]} 14... Rb8 {[%clk 0:04:37.4]} 15. Qh3 {[%clk 0:03:43.8]}
15... g6 {[%clk 0:04:34.6]} 16. Rfe1 {[%clk 0:03:36.4]} 16... Qf6 {[%clk
0:04:27.3]} 17. Rac1 {[%clk 0:03:18.4]} 17... Bb7 {[%clk 0:04:23.2]} 18. Re3
{[%clk 0:03:09.4]} 18... c5 {[%clk 0:04:13.1]} 19. Qh6 {[%clk 0:03:00.5]} 19...
Qg7 {[%clk 0:03:59.2]} 20. Rh3 {[%clk 0:02:51.2]} 20... Qxh6 {[%clk 0:03:56.2]}
21. Rxh6 {[%clk 0:02:51.1]} 21... Kg7 {[%clk 0:03:54.8]} 22. Rh3 {[%clk
0:02:47.4]} 22... Rbd8 {[%clk 0:03:54]} 23. Be2 {[%clk 0:02:38.7]} 23... Rd2
{[%clk 0:03:49.1]} 24. Bg4 {[%clk 0:02:29.2]} 24... h5 {[%clk 0:03:44.1]} 25.
Bxh5 {[%clk 0:02:17.4]} 25... gxh5 {[%clk 0:03:41.8]} 26. Rg3+ {[%clk
0:02:14.4]} 26... Kh7 {[%clk 0:03:39.2]} 27. f3 {[%clk 0:02:09.9]} 27... Rfd8
{[%clk 0:03:35.7]} 28. Rc3 {[%clk 0:02:01.7]} 28... f5 {[%clk 0:03:27.4]} 29.
Re3 {[%clk 0:01:58]} 29... f4 {[%clk 0:03:23.1]} 30. Rg7+ {[%clk 0:01:47.3]}
30... Kxg7 {[%clk 0:03:21.7]} 31. Rxe6 {[%clk 0:01:46.6]} 31... Rxa2 {[%clk
0:03:18.4]} 32. Re7+ {[%clk 0:01:43.7]} 32... Kh6 {[%clk 0:03:17.4]} 33. Rxb7
{[%clk 0:01:42.5]} 33... Rd1# {[%clk 0:03:16.9]} 0-1

[Event "Live Chess"]
[Site "Chess.com"]
[Date "2023.05.20"]
[Round "-"]
[White "raimundklein"]
[Black "SavagePawn7"]
[Result "1-0"]
[WhiteElo "1608"]
[BlackElo "788"]
[TimeControl "300"]
[EndTime "15:30:58 PDT"]
[Termination "raimundklein won on time"]

1. e4 {[%clk 0:04:59.2]} 1... d5 {[%clk 0:04:29.2]} 2. exd5 {[%clk 0:04:57.9]}
2... Nf6 {[%clk 0:04:27.4]} 3. d4 {[%clk 0:04:41.5]} 3... Nxd5 {[%clk
0:04:25.4]} 4. c4 {[%clk 0:04:34.6]} 4... Nb6 {[%clk 0:04:20.2]} 5. Nc3 {[%clk
0:04:25.4]} 5... Nc6 {[%clk 0:04:16.5]} 6. Be3 {[%clk 0:04:20.2]} 6... Bf5
{[%clk 0:04:12.7]} 7. h3 {[%clk 0:04:15.9]} 7... g6 {[%clk 0:04:07.7]} 8. a3
{[%clk 0:04:07.5]} 8... Bg7 {[%clk 0:04:05.3]} 9. Nf3 {[%clk 0:04:06.6]} 9...
Qd7 {[%clk 0:03:44.4]} 10. Qd2 {[%clk 0:02:41.1]} 10... O-O-O {[%clk 0:03:35.1]}
11. Rd1 {[%clk 0:02:39.3]} 11... e5 {[%clk 0:02:38.2]} 12. dxe5 {[%clk
0:02:26.9]} 12... Qxd2+ {[%clk 0:02:36.2]} 13. Rxd2 {[%clk 0:02:25.4]} 13...
Rxd2 {[%clk 0:02:34.2]} 14. Bxd2 {[%clk 0:02:25.3]} 14... Bxe5 {[%clk
0:02:21.5]} 15. Nxe5 {[%clk 0:02:22.6]} 15... Nxe5 {[%clk 0:02:19.8]} 16. c5
{[%clk 0:02:20.7]} 16... Nbd7 {[%clk 0:02:11]} 17. b4 {[%clk 0:02:02.9]} 17...
Re8 {[%clk 0:02:06.5]} 18. Be3 {[%clk 0:01:58.6]} 18... b6 {[%clk 0:01:55]} 19.
Ba6+ {[%clk 0:01:44.2]} 19... Kb8 {[%clk 0:01:52]} 20. c6 {[%clk 0:01:39.3]}
20... Nf6 {[%clk 0:01:38.4]} 21. Bb5 {[%clk 0:01:25.6]} 21... Rc8 {[%clk
0:01:29.9]} 22. O-O {[%clk 0:01:19.7]} 22... Rd8 {[%clk 0:01:27.7]} 23. Rd1
{[%clk 0:01:15.9]} 23... Rxd1+ {[%clk 0:01:23.5]} 24. Nxd1 {[%clk 0:01:15.8]}
24... Bc2 {[%clk 0:01:00.6]} 25. Nc3 {[%clk 0:01:12.2]} 25... Ne4 {[%clk
0:00:46.4]} 26. Nd5 {[%clk 0:01:00.6]} 26... Bb3 {[%clk 0:00:37.3]} 27. Nf4
{[%clk 0:00:52.8]} 27... Bc4 {[%clk 0:00:26.1]} 28. Bxc4 {[%clk 0:00:43.6]}
28... Nxc4 {[%clk 0:00:24.7]} 29. f3 {[%clk 0:00:39.5]} 29... Nxe3 {[%clk
0:00:23.3]} 30. fxe4 {[%clk 0:00:37.9]} 30... Nc4 {[%clk 0:00:20.6]} 31. a4
{[%clk 0:00:35]} 31... a5 {[%clk 0:00:17.9]} 32. bxa5 {[%clk 0:00:18.7]} 32...
bxa5 {[%clk 0:00:15.2]} 33. Kf2 {[%clk 0:00:18]} 33... Nb2 {[%clk 0:00:13.5]}
34. Ke3 {[%clk 0:00:17]} 34... Nxa4 {[%clk 0:00:12.1]} 35. Kd4 {[%clk
0:00:15.6]} 35... Nb6 {[%clk 0:00:10.3]} 36. Kc3 {[%clk 0:00:14.1]} 36... a4
{[%clk 0:00:09.2]} 37. Kb4 {[%clk 0:00:12.9]} 37... Ka7 {[%clk 0:00:07.8]} 38.
Nd3 {[%clk 0:00:11]} 38... Ka6 {[%clk 0:00:06.9]} 39. Nc5+ {[%clk 0:00:09.9]}
1-0

[Event "Live Chess"]
[Site "Chess.com"]
[Date "2023.05.20"]
[Round "-"]
[White "TheSmoulderingMaster"]
[Black "Ed_Knox"]
[Result "0-1"]
[WhiteElo "1689"]
[BlackElo "1467"]
[TimeControl "300"]
[EndTime "15:31:05 PDT"]
[Termination "Ed_Knox won by checkmate"]

1. e4 {[%clk 0:04:59.3]} 1... d5 {[%clk 0:04:58.2]} 2. exd5 {[%clk 0:04:58.2]}
2... Qxd5 {[%clk 0:04:57.3]} 3. Nc3 {[%clk 0:04:57]} 3... Qd8 {[%clk 0:04:56.5]}
4. d4 {[%clk 0:04:55.8]} 4... c6 {[%clk 0:04:55.8]} 5. Bf4 {[%clk 0:04:54]} 5...
Bf5 {[%clk 0:04:54.9]} 6. Nf3 {[%clk 0:04:53]} 6... e6 {[%clk 0:04:53.9]} 7. Bc4
{[%clk 0:04:51.5]} 7... Nf6 {[%clk 0:04:50.8]} 8. O-O {[%clk 0:04:50.5]} 8...
Nbd7 {[%clk 0:04:46.6]} 9. Re1 {[%clk 0:04:48.8]} 9... Be7 {[%clk 0:04:43.2]}
10. Bb3 {[%clk 0:04:47.4]} 10... O-O {[%clk 0:04:41]} 11. h3 {[%clk 0:04:46.4]}
11... Nd5 {[%clk 0:04:36.8]} 12. Bd2 {[%clk 0:04:43.2]} 12... Nxc3 {[%clk
0:04:25.8]} 13. Bxc3 {[%clk 0:04:42]} 13... Nf6 {[%clk 0:04:24.4]} 14. Ne5
{[%clk 0:04:40.4]} 14... Nd5 {[%clk 0:04:19.7]} 15. Bd2 {[%clk 0:04:37.1]} 15...
a5 {[%clk 0:03:59.4]} 16. c3 {[%clk 0:04:34.3]} 16... Qc7 {[%clk 0:03:43.4]} 17.
Qf3 {[%clk 0:04:32.4]} 17... Bd6 {[%clk 0:03:38.3]} 18. c4 {[%clk 0:04:26.5]}
18... Nf6 {[%clk 0:03:33.5]} 19. Bf4 {[%clk 0:04:23.8]} 19... Nd7 {[%clk
0:03:15]} 20. c5 {[%clk 0:04:09.3]} 20... Bxe5 {[%clk 0:03:13.8]} 21. Bxe5
{[%clk 0:04:07.3]} 21... Nxe5 {[%clk 0:03:12.6]} 22. Rxe5 {[%clk 0:04:06.3]}
22... Rad8 {[%clk 0:03:03]} 23. Rae1 {[%clk 0:04:01.9]} 23... Rxd4 {[%clk
0:02:51.2]} 24. Kh2 {[%clk 0:03:45.2]} 24... f6 {[%clk 0:02:42.5]} 25. Qxf5
{[%clk 0:03:41.5]} 25... fxe5 {[%clk 0:02:37.8]} 26. Qxe5 {[%clk 0:03:40.3]}
26... Qxe5+ {[%clk 0:02:32.4]} 27. Rxe5 {[%clk 0:03:38.6]} 27... Rxf2 {[%clk
0:02:17]} 28. Rxe6 {[%clk 0:03:37]} 28... Kf8 {[%clk 0:02:13.1]} 29. Re5 {[%clk
0:03:16.7]} 29... Rdd2 {[%clk 0:02:11.2]} 30. Rg5 {[%clk 0:03:13.3]} 30... Rxb2
{[%clk 0:02:09.6]} 31. h4 {[%clk 0:03:11.1]} 31... h6 {[%clk 0:02:06.1]} 32. Rg6
{[%clk 0:03:09.2]} 32... Rf4 {[%clk 0:01:46.1]} 33. Kg3 {[%clk 0:03:06.1]} 33...
Rbf2 {[%clk 0:01:40.5]} 34. Rd6 {[%clk 0:03:01.6]} 34... Rf6 {[%clk 0:01:34.6]}
35. Rd8+ {[%clk 0:02:59.1]} 35... Ke7 {[%clk 0:01:31.6]} 36. Rg8 {[%clk
0:02:56.4]} 36... R2f5 {[%clk 0:01:14.3]} 37. Rxg7+ {[%clk 0:02:53.9]} 37... Kd8
{[%clk 0:01:12.4]} 38. Rxb7 {[%clk 0:02:51.4]} 38... Rxc5 {[%clk 0:01:08]} 39.
Ra7 {[%clk 0:02:47.2]} 39... Rg6+ {[%clk 0:01:06.1]} 40. Kh2 {[%clk 0:02:43.6]}
40... Re5 {[%clk 0:01:01.5]} 41. Ra8+ {[%clk 0:02:37.1]} 41... Kc7 {[%clk
0:00:59.5]} 42. Ra7+ {[%clk 0:02:27.1]} 42... Kb6 {[%clk 0:00:58.7]} 43. Ra8
{[%clk 0:02:16.2]} 43... Re2 {[%clk 0:00:57.3]} 44. Rb8+ {[%clk 0:02:11.8]}
44... Kc7 {[%clk 0:00:55.5]} 45. Rf8 {[%clk 0:02:08]} 45... Rexg2+ {[%clk
0:00:53.2]} 46. Kh3 {[%clk 0:02:07.3]} 46... R6g3# {[%clk 0:00:51.4]} 0-1

[Event "Live Chess"]
[Site "Chess.com"]
[Date "2023.05.20"]
[Round "-"]
[White "xx_blindpuffin_xx"]
[Black "Duke_of_Bebington"]
[Result "1-0"]
[WhiteElo "2212"]
[BlackElo "1575"]
[TimeControl "300"]
[EndTime "15:31:16 PDT"]
[Termination "xx_blindpuffin_xx won by resignation"]

1. d4 {[%clk 0:04:58.7]} 1... d5 {[%clk 0:04:58.8]} 2. Bf4 {[%clk 0:04:55.8]}
2... Nf6 {[%clk 0:04:58]} 3. e3 {[%clk 0:04:54.5]} 3... Bf5 {[%clk 0:04:56.9]}
4. Nf3 {[%clk 0:04:53.2]} 4... e6 {[%clk 0:04:52.8]} 5. c4 {[%clk 0:04:51.8]}
5... c6 {[%clk 0:04:51.8]} 6. Qb3 {[%clk 0:04:50.4]} 6... Qb6 {[%clk 0:04:49.8]}
7. c5 {[%clk 0:04:48.7]} 7... Qxb3 {[%clk 0:04:48.3]} 8. axb3 {[%clk 0:04:48.6]}
8... Nbd7 {[%clk 0:04:46.8]} 9. b4 {[%clk 0:04:46.1]} 9... Ne4 {[%clk
0:04:42.7]} 10. b5 {[%clk 0:04:33.5]} 10... h6 {[%clk 0:04:37.9]} 11. bxc6
{[%clk 0:04:30.2]} 11... bxc6 {[%clk 0:04:37.8]} 12. Ba6 {[%clk 0:04:29.2]}
12... Bxc5 {[%clk 0:04:23.7]} 13. Bb7 {[%clk 0:04:21]} 13... Bb4+ {[%clk
0:04:13.8]} 14. Ke2 {[%clk 0:04:17]} 14... Rd8 {[%clk 0:04:03.1]} 15. Bc7 {[%clk
0:04:09.3]} 15... Rb8 {[%clk 0:03:59.6]} 16. Bxb8 {[%clk 0:03:39.1]} 16... Nxb8
{[%clk 0:03:59.5]} 17. Rxa7 {[%clk 0:03:37.8]} 17... O-O {[%clk 0:03:57.4]} 18.
Rc1 {[%clk 0:03:30.3]} 18... c5 {[%clk 0:03:53.9]} 19. Nbd2 {[%clk 0:03:19.2]}
19... Nxd2 {[%clk 0:03:45.1]} 20. Nxd2 {[%clk 0:03:19.1]} 20... cxd4 {[%clk
0:03:40.1]} 21. exd4 {[%clk 0:03:14.4]} 21... Rd8 {[%clk 0:03:33.9]} 22. Nf3
{[%clk 0:03:12.6]} 22... Nd7 {[%clk 0:03:31.1]} 23. Ba6 {[%clk 0:03:07.9]} 23...
Bd6 {[%clk 0:02:47.5]} 24. Bb5 {[%clk 0:02:57.4]} 24... Nf6 {[%clk 0:02:40.7]}
25. Ne5 {[%clk 0:02:53.3]} 25... Bxe5 {[%clk 0:02:33.5]} 26. dxe5 {[%clk
0:02:53.1]} 26... Nd7 {[%clk 0:02:21.4]} 27. Bxd7 {[%clk 0:02:49.6]} 1-0

[Event "Live Chess"]
[Site "Chess.com"]
[Date "2023.05.20"]
[Round "-"]
[White "SupremeTactician"]
[Black "LiamBellwood"]
[Result "0-1"]
[WhiteElo "2356"]
[BlackElo "2089"]
[TimeControl "300"]
[EndTime "15:31:21 PDT"]
[Termination "LiamBellwood won by checkmate"]

1. e4 {[%clk 0:04:58.4]} 1... e6 {[%clk 0:04:55]} 2. d4 {[%clk 0:04:57.3]} 2...
d5 {[%clk 0:04:53.8]} 3. Nd2 {[%clk 0:04:56.4]} 3... Nc6 {[%clk 0:04:51.7]} 4.
c3 {[%clk 0:04:54.9]} 4... e5 {[%clk 0:04:50.6]} 5. dxe5 {[%clk 0:04:48.5]} 5...
dxe4 {[%clk 0:04:49.1]} 6. Nxe4 {[%clk 0:04:44.6]} 6... Qxd1+ {[%clk 0:04:48.2]}
7. Kxd1 {[%clk 0:04:44.5]} 7... Nxe5 {[%clk 0:04:47.8]} 8. Be2 {[%clk 0:04:43]}
8... Bf5 {[%clk 0:04:41.4]} 9. Ng3 {[%clk 0:04:40.9]} 9... O-O-O+ {[%clk
0:04:39.8]} 10. Bd2 {[%clk 0:04:39.7]} 10... Bd3 {[%clk 0:04:31]} 11. Nf3 {[%clk
0:04:35.6]} 11... Bxe2+ {[%clk 0:04:21]} 12. Kxe2 {[%clk 0:04:28.6]} 12... Nxf3
{[%clk 0:04:20.4]} 13. gxf3 {[%clk 0:04:19.4]} 13... Nf6 {[%clk 0:04:19.7]} 14.
Ne4 {[%clk 0:04:12.4]} 14... Be7 {[%clk 0:03:46.3]} 15. Rhg1 {[%clk 0:04:05.5]}
15... Rhg8 {[%clk 0:03:45.1]} 16. Rad1 {[%clk 0:03:53.3]} 16... g6 {[%clk
0:03:36.6]} 17. Bg5 {[%clk 0:03:41]} 17... Nd5 {[%clk 0:02:57.2]} 18. Bxe7
{[%clk 0:03:20]} 18... Nxe7 {[%clk 0:02:55]} 19. Nf6 {[%clk 0:03:18.7]} 19...
Rh8 {[%clk 0:02:05]} 20. Rxd8+ {[%clk 0:03:12.1]} 20... Rxd8 {[%clk 0:02:04.9]}
21. Nxh7 {[%clk 0:02:45.4]} 21... Rh8 {[%clk 0:02:03.7]} 22. Ng5 {[%clk
0:02:44.3]} 22... f6 {[%clk 0:02:02.8]} 23. Ne4 {[%clk 0:02:43.1]} 23... f5
{[%clk 0:01:58.9]} 24. Nc5 {[%clk 0:02:34.6]} 24... Rxh2 {[%clk 0:01:55.3]} 25.
Ne6 {[%clk 0:02:32]} 25... Rh8 {[%clk 0:01:36.5]} 26. Nf4 {[%clk 0:02:26.6]}
26... Rg8 {[%clk 0:01:27.7]} 27. b3 {[%clk 0:02:04.1]} 27... Kd7 {[%clk
0:01:26.8]} 28. Nd5 {[%clk 0:01:59.1]} 28... Nxd5 {[%clk 0:01:24.1]} 29. Rd1
{[%clk 0:01:55.4]} 29... Ke6 {[%clk 0:01:15.9]} 30. Rc1 {[%clk 0:01:43.9]} 30...
Re8 {[%clk 0:01:09.4]} 31. c4 {[%clk 0:01:34.3]} 31... Kd6+ {[%clk 0:00:59.8]}
32. Kf1 {[%clk 0:01:29.7]} 32... Nf4 {[%clk 0:00:56]} 33. Rd1+ {[%clk
0:01:29.1]} 33... Kc5 {[%clk 0:00:50.8]} 34. Rd7 {[%clk 0:01:23.8]} 34... Rh8
{[%clk 0:00:41.8]} 35. Ke1 {[%clk 0:01:09.8]} 35... Kc6 {[%clk 0:00:40.3]} 36.
Rg7 {[%clk 0:01:05]} 36... Re8+ {[%clk 0:00:35.5]} 37. Kd2 {[%clk 0:01:03.4]}
37... Re2+ {[%clk 0:00:34.5]} 38. Kc3 {[%clk 0:00:59.8]} 38... Rxf2 {[%clk
0:00:31.9]} 39. Rf7 {[%clk 0:00:44.8]} 39... Rxf3+ {[%clk 0:00:28.5]} 40. Kd4
{[%clk 0:00:43.8]} 40... Ne2+ {[%clk 0:00:19.4]} 41. Ke5 {[%clk 0:00:41.8]}
41... Re3+ {[%clk 0:00:17.8]} 42. Kf6 {[%clk 0:00:40.9]} 42... f4 {[%clk
0:00:15.9]} 43. Kxg6 {[%clk 0:00:39.3]} 43... f3 {[%clk 0:00:14.5]} 44. Rf6+
{[%clk 0:00:39]} 44... Kc5 {[%clk 0:00:13.5]} 45. a3 {[%clk 0:00:38.6]} 45...
Nd4 {[%clk 0:00:09.7]} 46. Rf7 {[%clk 0:00:32.5]} 46... c6 {[%clk 0:00:08.9]}
47. Kg5 {[%clk 0:00:28.6]} 47... Re5+ {[%clk 0:00:08.1]} 48. Kg4 {[%clk
0:00:27.2]} 48... Re2 {[%clk 0:00:07.1]} 49. Rh7 {[%clk 0:00:18.8]} 49... Rg2+
{[%clk 0:00:06]} 50. Kh3 {[%clk 0:00:16.2]} 50... Rg1 {[%clk 0:00:05.6]} 51.
Rh5+ {[%clk 0:00:15.3]} 51... Kd6 {[%clk 0:00:03.9]} 52. Rh4 {[%clk 0:00:14.4]}
52... Rh1+ {[%clk 0:00:02.9]} 53. Kg3 {[%clk 0:00:12.6]} 53... Rxh4 {[%clk
0:00:02.8]} 54. Kf2 {[%clk 0:00:11.9]} 54... Nxb3 {[%clk 0:00:02.7]} 55. Ke3
{[%clk 0:00:11.8]} 55... Nc5 {[%clk 0:00:02.2]} 56. Kxf3 {[%clk 0:00:11.7]}
56... Rxc4 {[%clk 0:00:01.1]} 57. Ke2 {[%clk 0:00:11.6]} 57... Ra4 {[%clk
0:00:01]} 58. Kd2 {[%clk 0:00:10.8]} 58... Rxa3 {[%clk 0:00:00.9]} 59. Kc2
{[%clk 0:00:10.7]} 59... Rb3 {[%clk 0:00:00.8]} 60. Kd2 {[%clk 0:00:10.6]} 60...
a5 {[%clk 0:00:00.7]} 61. Ke1 {[%clk 0:00:10.5]} 61... a4 {[%clk 0:00:00.6]} 62.
Ke2 {[%clk 0:00:10.4]} 62... a3 {[%clk 0:00:00.5]} 63. Kd2 {[%clk 0:00:10]}
63... a2 {[%clk 0:00:00.4]} 64. Kc2 {[%clk 0:00:09.9]} 64... a1=Q {[%clk
0:00:00.3]} 65. Kd2 {[%clk 0:00:09.8]} 65... Qa2+ {[%clk 0:00:00.2]} 66. Kc1
{[%clk 0:00:09.7]} 66... Rb1# {[%clk 0:00:00.1]} 0-1

[Event "Live Chess"]
[Site "Chess.com"]
[Date "2023.05.20"]
[Round "-"]
[White "domrobson"]
[Black "Brooms1989"]
[Result "1-0"]
[WhiteElo "1783"]
[BlackElo "1079"]
[TimeControl "300"]
[EndTime "15:31:22 PDT"]
[Termination "domrobson won by checkmate"]

1. d4 {[%clk 0:04:59.4]} 1... Nf6 {[%clk 0:04:58.4]} 2. c4 {[%clk 0:04:58.8]}
2... g6 {[%clk 0:04:57.1]} 3. Nc3 {[%clk 0:04:58]} 3... Bg7 {[%clk 0:04:55.9]}
4. e4 {[%clk 0:04:57.7]} 4... d6 {[%clk 0:04:54.4]} 5. Be2 {[%clk 0:04:57.1]}
5... O-O {[%clk 0:04:53.1]} 6. Bg5 {[%clk 0:04:54.7]} 6... h6 {[%clk 0:04:46.5]}
7. Be3 {[%clk 0:04:53.1]} 7... Nbd7 {[%clk 0:04:36.9]} 8. g4 {[%clk 0:04:50.2]}
8... e5 {[%clk 0:04:34.6]} 9. d5 {[%clk 0:04:49.1]} 9... c6 {[%clk 0:04:31.5]}
10. f3 {[%clk 0:04:47.9]} 10... cxd5 {[%clk 0:04:27.1]} 11. cxd5 {[%clk
0:04:46.8]} 11... b6 {[%clk 0:04:07]} 12. Qd2 {[%clk 0:04:45]} 12... Kh7 {[%clk
0:04:03.6]} 13. h4 {[%clk 0:04:44.4]} 13... Nc5 {[%clk 0:03:57.4]} 14. Nh3
{[%clk 0:04:40.2]} 14... Ba6 {[%clk 0:03:27.2]} 15. Ng5+ {[%clk 0:04:32.3]}
15... hxg5 {[%clk 0:03:25.9]} 16. hxg5+ {[%clk 0:04:30.6]} 16... Kg8 {[%clk
0:03:23]} 17. gxf6 {[%clk 0:04:28.7]} 17... Qxf6 {[%clk 0:03:22.9]} 18. Bg5
{[%clk 0:04:25.5]} 18... Nxe4 {[%clk 0:02:46.5]} 19. Nxe4 {[%clk 0:04:19.9]}
19... Bxe2 {[%clk 0:02:44.1]} 20. Nxf6+ {[%clk 0:04:16.1]} 20... Bxf6 {[%clk
0:02:42.8]} 21. Bxf6 {[%clk 0:04:15.5]} 21... Bxf3 {[%clk 0:02:34.2]} 22. Rh8#
{[%clk 0:04:14.1]} 1-0

[Event "Live Chess"]
[Site "Chess.com"]
[Date "2023.05.20"]
[Round "-"]
[White "colourmefree"]
[Black "JoshMcK"]
[Result "0-1"]
[WhiteElo "413"]
[BlackElo "1548"]
[TimeControl "300"]
[EndTime "15:31:46 PDT"]
[Termination "JoshMcK won on time"]

1. d4 {[%clk 0:04:58.8]} 1... Nf6 {[%clk 0:04:58.3]} 2. c4 {[%clk 0:04:55.6]}
2... g6 {[%clk 0:04:57]} 3. g3 {[%clk 0:04:54.8]} 3... Bg7 {[%clk 0:04:55.6]} 4.
Bg2 {[%clk 0:04:53.3]} 4... O-O {[%clk 0:04:54]} 5. Nf3 {[%clk 0:04:51.5]} 5...
d5 {[%clk 0:04:51.8]} 6. Na3 {[%clk 0:04:37.7]} 6... dxc4 {[%clk 0:04:47.8]} 7.
Nxc4 {[%clk 0:04:36.8]} 7... Ne4 {[%clk 0:04:45.5]} 8. Be3 {[%clk 0:04:08.9]}
8... Nd6 {[%clk 0:04:41.7]} 9. Qc1 {[%clk 0:04:03.6]} 9... Nxc4 {[%clk
0:04:38.3]} 10. Qxc4 {[%clk 0:03:59.6]} 10... Nc6 {[%clk 0:04:37.8]} 11. Rd1
{[%clk 0:03:46]} 11... e6 {[%clk 0:04:23.8]} 12. Ng5 {[%clk 0:03:34]} 12... Ne7
{[%clk 0:04:13.6]} 13. O-O {[%clk 0:03:15.3]} 13... Nf5 {[%clk 0:04:10.3]} 14.
Rd3 {[%clk 0:02:52.3]} 14... Nxe3 {[%clk 0:04:07.6]} 15. Rxe3 {[%clk 0:02:47.5]}
15... Qxg5 {[%clk 0:04:06.8]} 16. f4 {[%clk 0:02:33.9]} 16... Qd8 {[%clk
0:04:03.4]} 17. Rd3 {[%clk 0:02:29.9]} 17... c6 {[%clk 0:03:57.4]} 18. Rfd1
{[%clk 0:02:13.4]} 18... Qb6 {[%clk 0:03:48.6]} 19. Qc3 {[%clk 0:01:58.2]} 19...
Bd7 {[%clk 0:03:28.9]} 20. Kf1 {[%clk 0:01:36.3]} 20... Rfc8 {[%clk 0:03:07.5]}
21. e4 {[%clk 0:01:16.5]} 21... Be8 {[%clk 0:03:01]} 22. e5 {[%clk 0:01:10.8]}
22... c5 {[%clk 0:02:49]} 23. d5 {[%clk 0:00:49.9]} 23... Bb5 {[%clk 0:02:43.9]}
24. Ke2 {[%clk 0:00:14.8]} 24... Rd8 {[%clk 0:02:41.2]} 25. Kd2 {[%clk
0:00:10.7]} 25... Bxd3 {[%clk 0:02:37.3]} 26. Kxd3 {[%clk 0:00:09.6]} 26... exd5
{[%clk 0:02:32.8]} 27. Rc1 {[%clk 0:00:06.1]} 27... c4+ {[%clk 0:02:28.5]} 28.
Ke2 {[%clk 0:00:02.9]} 28... d4 {[%clk 0:02:22.1]} 29. Qxc4 {[%clk 0:00:00.4]}
29... d3+ {[%clk 0:02:21.1]} 0-1